bitfinex-derivatives/quotes_ETHF0:USTF0_20251013
["timestamp","ask_amount","ask_price","bid_price","bid_amount"]
[1760340480533,2.03540915,4187.7,4187.6,1.57738]
[1760340480931,0.62312917,4187.7,4187.6,1.57738]
[1760340481131,1.41227998,4188.0,4187.9,1.08395]
[1760340481339,2.03536064,4188.0,4187.9,1.57735]
[1760340482140,0.62308066,4188.0,4187.9,1.57735]
[1760340484140,0.6483,4187.5,4187.4,0.8272]
[1760340484438,0.6483,4187.5,4187.4,1.1478]
[1760340485632,0.3336,4187.5,4187.4,1.1478]
[1760340485942,1.84185998,4187.6,4187.5,1.3547]
[1760340485943,1.41227998,4187.6,4187.5,1.3547]
[1760340486138,2.03511182,4187.6,4187.5,1.3547]
[1760340486643,2.36871182,4187.6,4187.5,1.3547]
[1760340487641,0.62283184,4187.6,4187.5,1.3547]
[1760340487934,0.0023877,4188.1,4188.0,1.3547]
[1760340491137,1.74826768,4188.1,4188.0,1.3547]
[1760340491440,0.0023877,4188.1,4188.0,1.3547]
[1760340498551,0.0023877,4188.1,4188.0,2.76697998]
[1760340499851,3.2078,4188.8,4188.7,0.6567]
[1760340500045,3.2078,4189.3,4188.7,1.57416]
[1760340500240,3.2078,4189.3,4188.6,1.41227998]
[1760340500241,0.337,4189.2,4189.1,1.1447]
[1760340500443,3.2078,4189.3,4189.2,1.1447]
[1760340500847,3.20997075,4189.3,4189.2,1.1447]
[1760340501650,0.00217075,4189.3,4189.2,1.1447]
[1760340502462,3.2078,4189.8,4189.2,1.1447]
[1760340502753,2.7880595,4191.4,4189.0,0.1961]
[1760340502754,3.2078,4191.4,4190.9,0.488]
[1760340503047,3.2078,4191.4,4190.5,0.1961]
[1760340503048,0.675,4190.6,4190.5,4.0606]
[1760340503257,0.337,4190.1,4190.0,0.8528]
[1760340503443,1.66127788,4190.6,4190.5,0.1961]
[1760340503444,3.06593412,4190.6,4190.5,0.1961]
[1760340503647,1.66127788,4190.9,4190.5,0.8528]
[1760340503846,1.66127788,4190.9,4190.5,1.3408]
[1760340503847,0.00197179,4190.6,4190.5,1.3408]
[1760340504145,0.33897179,4190.6,4190.5,1.3408]
[1760340504451,1.04537179,4190.6,4190.5,0.488]
[1760340504753,0.67697179,4190.6,4190.5,1.018]
[1760340504952,0.33897179,4190.6,4190.5,1.3408]
[1760340505157,0.00197179,4190.6,4190.5,1.3408]
[1760340506148,0.67697179,4190.6,4190.5,1.3408]
[1760340507054,0.33897179,4190.6,4190.5,1.3408]
[1760340507454,0.67697179,4190.6,4190.5,1.3408]
[1760340507654,0.675,4190.1,4190.0,0.85506922]
[1760340508152,0.00197179,4190.6,4190.5,1.3408]
[1760340508349,0.00197179,4190.6,4190.5,4.5486]
[1760340509759,0.00197179,4190.6,4190.5,6.20987788]
[1760340510156,0.04152871,4191.3,4191.2,1.1447]
[1760340510351,3.2078,4191.7,4191.6,1.1447]
[1760340510560,0.337,4192.1,4192.0,0.5189]
[1760340510854,3.49197623,4192.1,4192.0,1.3408]
[1760340511059,3.83166483,4192.1,4192.0,1.3408]
[1760340511250,0.6766886,4192.1,4192.0,1.3408]
[1760340511955,1.07255,4193.1,4192.0,1.3408]
[1760340511956,3.97386,4192.7,4192.6,1.1447]
[1760340512162,3.2078,4192.7,4192.6,1.1447]
[1760340512463,0.337,4192.7,4192.6,0.8219]
[1760340512658,3.5762,4193.2,4192.9,0.3339]
[1760340512659,1.10403,4193.0,4192.9,0.3339]
[1760340512864,1.10634973,4193.0,4192.9,1.1447]
[1760340513164,3.10178967,4193.0,4192.6,0.488]
[1760340513356,0.00231973,4193.0,4192.9,1.1447]
[1760340514051,1.04571973,4193.0,4192.9,0.488]
[1760340514253,3.20309459,4193.0,4192.6,0.6567]
[1760340514454,0.38082932,4193.0,4192.9,0.3339]
[1760340514763,0.38082932,4193.0,4192.9,1.1447]
[1760340515663,1.10406,4192.6,4192.5,0.53]
[1760340515859,0.337,4192.6,4192.5,0.8528]
[1760340516064,0.42904,4192.8,4192.6,0.488]
[1760340516258,0.76604,4192.8,4192.7,1.1447]
[1760340516765,0.42904,4192.8,4192.7,1.1447]
[1760340517062,1.10404,4192.8,4192.7,1.1447]
[1760340517258,1.47244,4192.8,4192.7,0.8219]
[1760340517563,0.42904,4192.8,4192.7,1.1447]
[1760340517956,0.04382932,4193.0,4192.8,0.488]
[1760340518261,0.04382932,4193.0,4192.9,1.1447]
[1760340518859,0.47285932,4193.0,4192.9,1.1447]
[1760340519061,0.04382932,4193.0,4192.9,1.1447]
[1760340519268,0.00231973,4193.0,4192.9,1.1447]
[1760340521167,1.07223,4194.4,4193.2,1.1447]
[1760340521364,0.42893,4193.9,4193.6,0.6567]
[1760340521561,0.42892,4194.1,4194.0,0.8528]
[1760340521763,3.2078,4194.5,4194.0,0.8528]
[1760340521764,3.2078,4194.5,4194.2,0.488]
[1760340521968,3.2078,4194.5,4194.4,0.6567]
[1760340522175,3.54774698,4194.5,4194.4,1.14748741]
[1760340522477,3.21074698,4194.5,4194.4,1.14748741]
[1760340522858,3.21074698,4194.5,4194.4,0.82468741]
[1760340522859,3.88574698,4194.5,4194.4,0.82468741]
[1760340523058,3.88574698,4194.5,4194.4,0.49078741]
[1760340523271,3.88574698,4194.5,4194.4,0.82468741]
[1760340523766,3.21074698,4194.5,4194.4,1.14748741]
[1760340523974,3.54774698,4194.5,4194.4,1.14748741]
[1760340524658,3.88574698,4194.5,4194.4,1.14748741]
[1760340524855,4.25414698,4194.5,4194.4,0.00278741]
[1760340525068,4.25414698,4194.5,4194.4,0.49078741]
[1760340525069,3.88574698,4194.5,4194.4,0.49078741]
[1760340525264,3.88574698,4194.5,4194.4,0.82468741]
[1760340525469,1.47232,4194.0,4193.9,3.2078]
[1760340525771,1.47232,4194.0,4193.0,0.1961]
[1760340525772,1.10401,4193.1,4193.0,1.018]
[1760340526272,1.10401,4193.1,4192.2,3.2078]
[1760340526273,1.0434,4192.6,4192.2,3.2078]
[1760340526461,0.42907,4192.5,4192.3,1.1447]
[1760340526661,0.76607,4192.5,4192.4,1.1553]
[1760340527063,0.42907,4192.5,4192.4,1.1553]
[1760340527269,1.10787,4192.5,4192.4,1.1553]
[1760340527569,0.4291,4192.3,4192.2,3.21043016]
[1760340527772,0.8575936,4194.2,4192.8,0.6673]
[1760340528066,3.5932,4194.3,4194.0,0.9942]
[1760340528067,1.10772,4194.1,4194.0,0.9942]
[1760340529169,2.10549586,4194.1,4194.0,0.4759]
[1760340529566,1.72009586,4194.1,4194.0,0.4759]
[1760340529865,1.72009586,4194.1,4194.0,0.8176]
[1760340530065,1.72009586,4194.1,4194.0,1.0213]
[1760340530865,1.29117586,4194.1,4194.0,1.3494]
[1760340531072,3.6367,4194.3,4194.1,0.4771]
[1760340531372,1.08935,4193.7,4193.6,0.8188]
[1760340531574,1.08935,4193.7,4193.0,3.4042]
[1760340531575,1.08941,4193.1,4193.0,4.074]
[1760340532072,1.08941,4193.1,4193.0,1.3433]
[1760340532268,3.8682,4193.7,4193.6,0.8188]
[1760340532473,0.42901,4193.1,4193.0,0.1964]
[1760340532772,1.08941,4193.1,4193.0,0.8662]
[1760340533072,1.70307631,4193.1,4193.0,1.3433]
[1760340533967,1.04267631,4193.1,4193.0,1.3433]
[1760340534170,0.42901,4193.1,4193.0,1.3433]
[1760340534559,1.04312831,4193.1,4193.0,1.3433]
[1760340534764,1.37302831,4193.1,4193.0,1.3433]
[1760340535061,1.70352831,4193.1,4193.0,1.3433]
[1760340535262,1.04312831,4193.1,4193.0,1.3433]
[1760340536266,0.61411831,4193.1,4193.0,1.3433]
[1760340537875,1.27451831,4193.1,4193.0,1.3433]
[1760340539169,1.7150695,4194.0,4193.6,1.1469]
[1760340539170,0.8575936,4194.0,4193.6,1.1469]
[1760340539468,0.42895,4193.8,4193.6,1.1469]
[1760340539670,3.5377,4193.7,4193.6,1.1469]
[1760340540968,3.2078,4193.7,4193.6,1.1469]
[1760340541171,4.0653936,4193.7,4193.6,1.1469]
[1760340542774,0.8575936,4194.1,4194.0,0.8735]
[1760340542979,0.8575936,4194.1,4194.0,1.3506]
[1760340543180,0.8575936,4194.2,4194.1,1.1469]
[1760340544080,3.2078,4194.3,4194.2,1.1469]
[1760340545670,3.5377,4194.3,4194.2,1.1469]
[1760340546076,3.2078,4194.3,4194.2,1.1469]
[1760340546488,3.2078,4194.3,4193.7,3.2078]
[1760340546489,0.3299,4193.8,4193.7,1.1469]
[1760340546778,0.42894,4193.8,4193.7,1.1469]
[1760340547081,0.42892,4194.0,4193.9,0.6698]
[1760340547278,0.42892,4194.0,4193.9,1.1469]
[1760340549188,3.2078,4194.3,4194.1,0.6698]
[1760340549384,3.6367,4194.3,4194.2,1.1469]
[1760340549578,3.2078,4194.3,4194.2,1.1469]
[1760340549774,0.00294698,4194.5,4194.3,0.4771]
[1760340549985,0.00294698,4194.5,4194.4,1.1469]
[1760340551278,0.59891362,4194.5,4194.4,1.1469]
[1760340551486,0.92881362,4194.5,4194.4,1.1469]
[1760340552287,1.25931362,4194.5,4194.4,1.1469]
[1760340552481,0.92881362,4194.5,4194.4,1.1469]
[1760340552686,0.59891362,4194.5,4194.4,1.1469]
[1760340553679,0.92881362,4194.5,4194.4,1.1469]
[1760340553982,1.77331362,4194.5,4194.4,0.4771]
[1760340554189,1.77331362,4194.5,4193.5,0.2037]
[1760340554190,1.08936,4193.6,4193.5,1.0225]
[1760340554481,1.60341,4193.2,4193.1,0.8188]
[1760340554680,0.42906,4192.6,4192.5,0.1964]
[1760340554882,0.42909,4192.4,4192.2,0.00263016]
[1760340555085,0.514,4192.3,4192.2,0.00263016]
[1760340555283,3.2078,4192.9,4192.2,0.00263016]
[1760340555284,3.13346097,4192.6,4192.3,0.4771]
[1760340555478,3.7218,4192.4,4192.3,0.4771]
[1760340555679,0.94309,4192.3,4192.2,0.00263016]
[1760340555885,1.53915487,4192.3,4192.2,0.00263016]
[1760340556491,4.57817107,4192.3,4192.2,0.00263016]
[1760340557887,0.42919,4191.4,4191.3,0.4771]
[1760340558091,3.63699,4191.4,4191.3,0.4771]
[1760340558385,4.15099,4191.4,4191.3,0.4771]
[1760340558587,7.19802927,4191.4,4191.3,0.4771]
[1760340558787,0.42926,4190.8,4190.6,0.4771]
[1760340558990,0.42923,4191.0,4190.6,0.4788295]
[1760340559184,6.25719178,4191.4,4190.6,0.4788295]
[1760340559185,0.42925,4190.9,4190.6,0.4788295]
[1760340559393,0.514,4191.3,4190.6,0.4788295]
[1760340559588,0.42925,4190.8,4190.6,0.4788295]
[1760340559783,0.91425,4190.8,4190.6,0.0017295]
[1760340559987,0.485,4190.7,4190.6,0.0017295]
[1760340560194,0.485,4190.7,4190.6,0.4727295]
[1760340560687,3.2078,4190.9,4190.6,0.4727295]
[1760340560688,3.2078,4190.9,4190.6,0.0017295]
[1760340560894,3.2078,4190.9,4190.7,0.471]
[1760340561090,0.42926,4190.7,4190.6,0.0017295]
[1760340561286,3.63704,4190.9,4190.6,0.0017295]
[1760340561685,3.63704,4190.9,4190.7,0.471]
[1760340561886,0.42926,4190.7,4190.6,0.4727295]
[1760340565484,0.91426,4190.7,4190.6,0.0017295]
[1760340565685,4.73930889,4190.7,4190.6,0.0017295]
[1760340565904,4.73930889,4190.7,4190.0,150.0]
[1760340565905,0.91432,4190.1,4190.0,150.0]
[1760340566190,4.12212,4190.1,4190.0,150.0]
[1760340566382,7.24642693,4190.1,4190.0,150.0]
[1760340566796,7.24642693,4190.1,4190.0,150.47342575]
[1760340567195,6.76142693,4190.1,4190.0,150.68072575]
[1760340567797,6.76142693,4190.1,4190.0,0.68072575]
[1760340567998,7.41482693,4190.1,4190.0,1.00482575]
[1760340568395,7.41482693,4190.1,4190.0,0.00242575]
[1760340568396,7.89982693,4190.1,4190.0,0.00242575]
[1760340568599,7.89982693,4190.1,4188.7,3.2078]
[1760340568600,0.6534,4188.9,4188.8,1.114]
[1760340568894,0.6534,4188.9,4188.8,0.471]
[1760340568895,0.485,4188.9,4188.8,0.471]
[1760340569093,0.485,4188.9,4188.6,0.471]
[1760340569094,3.6030057,4188.9,4188.6,0.471]
[1760340569398,0.42946,4188.8,4188.6,0.471]
[1760340569693,0.42947,4188.7,4188.6,0.47282195]
[1760340570101,0.42946,4188.8,4188.7,0.471]
[1760340570394,3.3565,4189.5,4188.7,0.471]
[1760340570395,3.24933967,4190.1,4190.0,0.6783]
[1760340572592,0.485,4191.0,4190.5,0.2073]
[1760340572593,3.2078,4190.6,4190.5,0.2073]
[1760340572800,3.2078,4190.6,4190.5,0.6783]
[1760340573299,3.5399,4190.6,4190.5,1.0024]
[1760340573901,3.5399,4190.6,4190.5,1.3213]
[1760340574202,3.96913,4191.1,4191.0,0.3241]
[1760340574402,0.3321,4190.6,4190.5,1.0024]
[1760340574702,0.3321,4190.6,4190.5,1.3213]
[1760340577293,3.24932911,4191.1,4191.0,1.3213]
[1760340577899,3.90272911,4191.1,4191.0,1.3213]
[1760340578096,0.6534,4190.6,4190.5,0.2073]
[1760340578302,0.6534,4190.1,4190.0,1.0024]
[1760340578503,0.6534,4190.1,4190.0,1.3213]
[1760340578702,0.42928,4190.5,4190.1,0.471]
[1760340578892,1.08268,4190.5,4190.4,0.7951]
[1760340579098,1.56768,4190.5,4190.4,0.7951]
[1760340579694,0.42932,4190.1,4190.0,0.2073]
[1760340579899,3.63712,4190.1,4189.5,0.2073]
[1760340580100,0.42934,4190.0,4189.5,0.87537196]
[1760340580501,1.08274,4190.0,4189.9,0.7951]
[1760340582898,1.56774,4190.0,4189.9,0.7951]
[1760340583100,1.08274,4190.0,4189.9,0.7951]
[1760340585106,1.08274,4190.0,4189.5,0.44599196]
[1760340585107,0.3166,4189.6,4189.5,1.58779196]
[1760340585299,0.649,4189.6,4189.5,1.3491]
[1760340585506,1.134,4189.6,4189.5,1.3491]
[1760340585700,0.649,4189.6,4189.5,1.3491]
[1760340586204,0.42937,4189.7,4189.5,0.847]
[1760340586397,0.42937,4189.7,4189.6,1.1418]
[1760340586792,3.2078,4190.1,4190.0,0.195]
[1760340586993,3.63713,4190.1,4190.0,1.3368]
[1760340587198,4.24009952,4190.1,4190.0,1.3368]
[1760340587403,3.95373,4190.1,4190.0,1.3368]
[1760340587605,4.28613,4190.1,4190.0,1.3368]
[1760340588307,4.77113,4190.1,4190.0,1.3368]
[1760340589394,4.77113,4190.1,4190.0,0.5021]
[1760340589596,1.09687,4189.7,4189.6,0.8106]
[1760340589797,0.3369,4189.3,4189.2,0.74691]
[1760340589996,0.6675,4189.3,4189.2,1.06021]
[1760340590198,0.4614,4189.2,4188.6,0.00182195]
[1760340590393,1.07342,4189.7,4188.6,0.81242195]
[1760340590394,4.3367,4188.7,4188.6,0.81242195]
[1760340590601,1.1289,4188.7,4188.6,0.81242195]
[1760340590802,3.157677,4189.1,4189.0,1.3162]
[1760340590803,0.3369,4189.1,4189.0,1.3162]
[1760340591306,1.1289,4189.1,4189.0,1.0029]
[1760340591900,0.6675,4189.1,4189.0,1.0029]
[1760340592301,0.6675,4189.1,4188.6,0.00182195]
[1760340592302,0.3306,4188.8,4188.7,0.4931]
[1760340592509,1.09696,4188.7,4188.6,0.49492195]
[1760340592705,1.09696,4188.7,4188.6,1.12572195]
[1760340593097,0.3369,4188.7,4188.6,1.12572195]
[1760340593308,0.6675,4188.7,4188.6,1.12572195]
[1760340593603,4.3367,4188.7,4188.6,0.00182195]
[1760340593909,7.46439782,4188.7,4188.6,0.00182195]
[1760340594102,7.46439782,4188.7,4188.6,0.49492195]
[1760340594604,7.46439782,4188.7,4188.6,0.81242195]
[1760340595210,7.46439782,4188.7,4188.6,0.00182195]
[1760340596404,7.46439782,4188.7,4188.6,0.49492195]
[1760340596709,7.46439782,4188.7,4188.6,0.81242195]
[1760340597909,7.46439782,4188.7,4188.6,0.49492195]
[1760340599716,6.67239782,4188.7,4188.6,1.12572195]
[1760340600011,0.42945,4188.9,4188.6,1.12572195]
[1760340600312,7.49867656,4189.2,4189.1,0.8106]
[1760340600610,1.1289,4188.7,4188.6,0.00182195]
[1760340601012,7.41413017,4188.7,4188.6,0.00182195]
[1760340601912,12.19930556,4188.7,4188.6,0.00182195]
[1760340602112,0.6675,4187.6,4186.7,3.2078]
[1760340602313,0.6675,4187.1,4187.0,1.74583]
[1760340603111,0.6675,4187.7,4187.6,0.3175]
[1760340603411,0.0023116,4187.7,4187.6,1.1239]
[1760340604404,3.6692,4188.8,4187.6,1.1239]
[1760340604714,3.6692,4188.8,4188.7,1.1239]
[1760340604715,6.25719361,4188.8,4188.7,1.1239]
[1760340605013,3.5447,4189.4,4189.3,0.3175]
[1760340605314,3.2078,4189.9,4189.5,0.1923]
[1760340605507,3.2078,4189.9,4189.8,0.4931]
[1760340605707,3.20986002,4189.9,4189.8,0.4931]
[1760340606105,4.27018177,4189.9,4189.8,0.4931]
[1760340606405,0.4614,4189.8,4189.2,0.4931]
[1760340606610,0.89076,4189.8,4189.2,0.92251]
[1760340606810,0.4614,4189.6,4189.3,0.4931]
[1760340607013,0.4614,4189.6,4189.2,0.42941]
[1760340607411,0.4614,4189.6,4189.0,0.1923]
[1760340607412,3.06442364,4189.7,4189.1,0.4931]
[1760340607615,3.06442364,4189.7,4189.0,0.1923]
[1760340607819,3.20986002,4189.9,4188.7,0.4931]
[1760340607820,0.42941,4189.2,4188.7,0.4931]
[1760340608017,0.42941,4189.2,4188.7,0.42946]
[1760340608018,0.4614,4189.1,4188.7,0.42946]
[1760340608314,3.67126002,4189.9,4189.1,0.4931]
[1760340608519,3.67126002,4189.9,4189.5,0.1923]
[1760340608520,0.59971314,4189.8,4189.5,0.1923]
[1760340608824,3.20986002,4189.9,4189.5,0.62168]
[1760340609020,3.20986002,4189.9,4189.6,0.92247]
[1760340609317,0.00206002,4189.9,4189.6,0.42937]
[1760340609613,0.00206002,4189.9,4188.3,3.7009]
[1760340609614,0.4614,4189.1,4188.3,3.7009]
[1760340609819,0.42946,4188.8,4188.3,3.2078]
[1760340610018,0.42946,4188.8,4188.4,0.4931]
[1760340610220,0.4614,4188.7,4188.3,3.6373]
[1760340610419,5.24657539,4189.4,4188.6,0.42947]
[1760340610616,0.42942,4189.2,4188.7,0.92256]
[1760340610919,3.74763479,4189.1,4188.8,0.42944]
[1760340611118,0.4614,4188.9,4188.3,3.2078]
[1760340611422,0.4614,4188.4,4188.3,3.2078]
[1760340612720,0.4614,4188.0,4187.8,0.4931]
[1760340613421,0.42951,4188.3,4187.8,0.42955]
[1760340613623,0.42951,4188.3,4187.7,3.2078]
[1760340613624,0.42951,4188.3,4187.9,0.42954]
[1760340613822,0.42952,4188.2,4187.9,0.42954]
[1760340614016,0.89092,4188.2,4188.0,0.4931]
[1760340614211,0.42956,4187.8,4187.7,3.7009]
[1760340614420,0.89094,4188.0,4187.8,0.4931]
[1760340614924,0.42954,4188.0,4187.8,0.4931]
[1760340615526,0.42954,4188.0,4187.7,3.63736]
[1760340615820,0.4614,4188.2,4188.0,0.4931]
[1760340616015,0.4614,4188.2,4187.7,3.2078]
[1760340616016,0.42949,4188.5,4187.8,0.4931]
[1760340616220,3.11821692,4188.3,4188.2,0.4931]
[1760340616531,4.88947539,4189.0,4188.1,0.42952]
[1760340616532,0.4614,4189.0,4188.1,1.07382]
[1760340616820,0.42941,4189.3,4189.0,1.11483]
[1760340617415,0.00206002,4189.9,4189.1,0.4931]
[1760340617416,3.2078,4189.6,4189.1,0.4931]
[1760340617610,3.2078,4189.6,4188.7,3.2078]
[1760340617815,3.58036472,4189.5,4188.9,0.42943]
[1760340618019,0.4614,4189.2,4188.9,0.42943]
[1760340618223,0.4614,4189.3,4189.0,0.92253]
[1760340618518,0.42947,4188.7,4188.2,0.42951]
[1760340618724,0.42947,4188.7,4188.3,0.4295]
[1760340619020,3.5452667,4188.6,4188.1,3.2078]
[1760340619220,0.42945,4188.9,4188.1,3.2078]
[1760340619418,3.51190099,4188.9,4188.7,0.4931]
[1760340619618,0.42945,4188.9,4188.7,0.4931]
[1760340619915,3.2078,4189.1,4188.1,3.2078]
[1760340619916,3.08245099,4188.8,4188.2,0.4779]
[1760340620218,0.42948,4188.6,4188.2,0.90741]
[1760340620424,0.4635,4188.5,4188.3,0.9074]
[1760340620822,0.89296,4188.8,4188.4,0.90738]
[1760340621130,0.4635,4188.2,4188.1,3.2078]
[1760340621419,3.10386428,4188.5,4187.6,0.4779]
[1760340621420,0.42954,4188.0,4187.6,0.42957]
[1760340621727,3.99691428,4187.9,4187.7,0.4779]
[1760340622128,0.4635,4187.9,4187.7,0.4779]
[1760340622326,3.1280149,4187.8,4187.7,0.4779]
[1760340622623,3.5915149,4188.4,4188.2,0.4779]
[1760340622823,3.1280149,4188.4,4188.3,0.4779]
[1760340623028,3.2078,4188.6,4188.5,0.6627]
[1760340623325,3.2078,4188.6,4188.5,1.09218]
[1760340623731,3.2078,4189.1,4188.6,0.4779]
[1760340623926,0.60131783,4189.0,4188.9,0.42944]
[1760340624230,3.63718,4189.6,4189.1,0.4779]
[1760340624525,6.7674063,4189.6,4189.0,0.1848]
[1760340624826,6.8015263,4189.6,4189.0,0.1848]
[1760340625022,6.8015263,4189.6,4189.5,0.4779]
[1760340625829,0.4635,4189.5,4189.4,0.42939]
[1760340626026,0.4635,4189.5,4189.2,0.42941]
[1760340626230,0.4635,4189.4,4189.3,0.4294]
[1760340626715,3.59882822,4189.4,4189.3,0.4294]
[1760340627029,0.4635,4189.3,4189.1,0.42942]
[1760340627417,0.4635,4189.3,4189.1,0.90732]
[1760340627921,3.94557197,4189.2,4188.8,0.42945]
[1760340628123,3.2078,4189.1,4188.5,0.1848]
[1760340628318,3.2078,4189.1,4188.6,0.4779]
[1760340628526,3.2078,4189.1,4188.5,0.1848]
[1760340628833,3.6713,4189.1,4188.9,0.4779]
[1760340629022,3.6713,4189.1,4189.0,0.6627]
[1760340629023,3.2078,4189.1,4189.0,0.6627]
[1760340629221,0.46556002,4189.9,4189.5,0.4779]
[1760340629222,3.2078,4189.6,4189.5,0.4779]
[1760340629418,3.2078,4189.6,4189.5,0.6627]
[1760340629918,3.2078,4189.6,4189.4,0.42939]
[1760340630122,3.2078,4189.6,4189.2,0.90731]
[1760340630318,0.4635,4189.4,4188.8,0.4779]
[1760340630530,0.4294,4189.4,4189.0,0.42943]
[1760340630721,0.42942,4189.2,4188.8,0.90735]
[1760340630917,0.42942,4189.2,4188.9,0.4779]
[1760340631130,0.42946,4188.8,4188.2,3.92446605]
[1760340631323,0.42946,4188.8,4188.4,0.42949]
[1760340631823,0.4635,4188.5,4187.8,0.4779]
[1760340632125,0.4635,4188.1,4187.9,0.42954]
[1760340632524,0.4635,4188.1,4187.9,0.90744]
[1760340633233,0.4635,4188.1,4187.7,3.44659456]
[1760340633234,3.2078,4188.6,4188.4,0.42949]
[1760340633431,3.2078,4188.6,4188.5,0.4779]
[1760340633627,3.80915599,4188.6,4188.5,0.4779]
[1760340633833,7.40244192,4188.6,4188.5,0.4779]
[1760340634036,0.42944,4189.0,4188.6,0.42947]
[1760340634332,3.2078,4189.1,4188.0,0.1848]
[1760340634333,0.4635,4188.7,4188.0,0.1848]
[1760340634527,3.06083885,4188.6,4188.4,0.42949]
[1760340634733,0.4635,4188.6,4188.4,0.42949]
[1760340635035,0.4635,4188.6,4188.5,0.4779]
[1760340636631,0.4635,4188.6,4187.7,3.44659456]
[1760340636632,0.42952,4188.2,4187.9,0.42954]
[1760340636932,3.05523112,4188.1,4187.7,3.87615456]
[1760340637132,3.05523112,4188.1,4187.7,4.35405456]
[1760340637334,0.4635,4188.3,4187.7,4.35405456]
[1760340637520,0.0875,4188.5,4187.7,3.87615456]
[1760340637725,0.4635,4187.9,4187.7,3.87615456]
[1760340638029,4.0354492,4187.8,4187.7,3.2078]
[1760340638422,0.4635,4187.8,4187.7,3.2078]
[1760340638627,0.4635,4187.8,4187.7,3.6857]
[1760340638828,0.0875,4188.5,4187.7,3.2078]
[1760340639038,0.4635,4188.3,4187.7,3.2078]
[1760340639232,0.4635,4187.9,4187.7,3.2078]
[1760340639529,3.53025215,4187.8,4187.7,3.2078]
[1760340639733,0.4635,4187.5,4187.2,3.2078]
[1760340639925,0.4635,4187.3,4187.2,3.2078]
[1760340640127,3.05724467,4187.4,4187.3,0.42961]
[1760340640328,3.2078,4188.1,4187.8,0.42956]
[1760340640329,3.05724467,4187.9,4187.8,0.42956]
[1760340640630,3.2078,4188.1,4188.0,0.1848]
[1760340640830,1.27914568,4189.1,4188.7,0.42946]
[1760340640831,3.2078,4188.9,4188.7,0.42946]
[1760340641129,3.2078,4188.9,4188.5,0.1848]
[1760340641331,3.2078,4189.4,4188.5,0.4779]
[1760340641629,6.35343633,4188.9,4188.5,0.1848]
[1760340641836,3.14563633,4188.9,4188.8,0.90735]
[1760340642038,3.6372,4189.4,4189.2,0.4779]
[1760340642337,3.6372,4189.4,4189.2,0.90731]
[1760340642338,3.15819549,4189.3,4189.2,0.90731]
[1760340643027,3.15819549,4189.3,4189.2,0.4779]
[1760340643028,3.62169549,4189.3,4189.2,0.4779]
[1760340643228,0.4635,4189.2,4189.0,1.09213]
[1760340643732,0.4635,4189.2,4189.1,0.4779]
[1760340644329,3.15819549,4189.3,4189.2,0.90731]
[1760340645123,3.60789549,4189.3,4189.2,0.4779]
[1760340645531,3.60789549,4189.3,4189.0,0.61423]
[1760340645532,0.4497,4189.2,4189.0,1.07713]
[1760340645736,0.6209,4189.1,4189.0,1.07713]
[1760340646235,0.6209,4189.1,4189.0,1.39783]
[1760340646731,1.0706,4189.1,4189.0,0.89233]
[1760340647138,0.6209,4189.1,4189.0,1.21303]
[1760340647333,0.6209,4189.1,4189.0,1.39423]
[1760340647538,0.3018,4189.1,4189.0,1.69483]
[1760340648239,0.3018,4189.5,4189.4,1.51359]
[1760340648428,3.20986002,4189.9,4189.0,0.1812]
[1760340648429,3.83076002,4189.9,4189.8,0.75005]
[1760340648625,3.83076002,4189.9,4189.8,1.51355]
[1760340648626,0.30386002,4189.9,4189.8,1.51355]
[1760340648828,0.00206002,4189.9,4189.8,1.51355]
[1760340649439,0.00206002,4189.9,4189.8,0.89225]
[1760340650332,3.2078,4190.9,4190.8,0.90235]
[1760340651028,3.6523,4190.9,4190.8,0.90235]
[1760340651234,0.4445,4190.8,4190.2,3.2078]
[1760340651730,0.4445,4190.8,4190.2,0.00239392]
[1760340652040,0.42928,4190.6,4190.2,0.43169392]
[1760340652342,0.42928,4190.6,4190.2,0.90479392]
[1760340652537,3.56438449,4190.8,4190.2,0.90479392]
[1760340652731,0.4445,4190.7,4190.2,0.90479392]
[1760340652932,0.4445,4190.7,4190.3,0.4293]
[1760340653128,0.4445,4190.7,4190.2,0.47549392]
[1760340653129,0.4293,4190.4,4190.2,0.00239392]
[1760340653332,0.4445,4190.3,4190.2,0.00239392]
[1760340653532,3.05393268,4190.3,4190.2,0.47549392]
[1760340653835,3.05393268,4190.5,4190.2,0.47549392]
[1760340654037,3.49843268,4190.5,4190.3,0.4731]
[1760340654330,0.4445,4190.5,4190.2,0.00239392]
[1760340654533,0.4445,4190.3,4190.2,0.00239392]
[1760340654833,3.4924523,4190.3,4190.2,0.00239392]
[1760340655033,3.4924523,4190.3,4189.1,3.2078]
[1760340655034,3.64863944,4190.3,4189.1,3.2078]
[1760340655239,3.2078,4189.9,4189.1,3.2078]
[1760340657640,3.07267878,4189.2,4189.1,3.68321329]
[1760340657835,0.4445,4189.3,4189.1,3.68321329]
[1760340658139,3.99746698,4189.2,4189.1,0.00231329]
[1760340658642,1.47471127,4189.2,4189.1,0.00231329]
[1760340658944,4.59826825,4189.2,4189.1,0.00231329]
[1760340659150,4.59826825,4189.2,4185.0,4.19342449]
[1760340659151,0.4445,4188.3,4187.9,3.2078]
[1760340659336,0.42952,4188.2,4187.9,3.2078]
[1760340659535,0.4445,4188.0,4187.9,3.2078]
[1760340660239,0.4445,4188.0,4187.9,3.21033795]
[1760340660633,3.66737992,4188.0,4187.9,3.21033795]
[1760340662034,3.66737992,4188.0,4187.9,0.00253795]
[1760340663136,0.1276,4187.5,4186.9,3.2078]
[1760340663338,0.42967,4186.7,4186.4,3.2078]
[1760340663544,0.4445,4186.6,4186.4,3.2078]
[1760340663736,0.4445,4186.5,4186.4,3.2078]
[1760340664136,0.44689112,4186.5,4186.4,3.21002556]
[1760340664735,0.00239112,4186.5,4186.4,3.68312556]